Cogmind - Beta 13 @@@ ROGUE MODE // 2024.06.10 @ 21:22:21 Player: Heliostats Result: Self-destructed Performance ------------- Evolutions (1) 500 Regions Visited (3) 600 Robots Destroyed (5) 25 Value Destroyed (35) 35 Prototype IDs (0) 0 Alien Tech Used (0) 0 Bonus (0) 0 TOTAL SCORE: 1160 Bonus ------- None Cogmind --------- Core Integrity 382/400 Matter 163/300 Energy 74/125 System Corruption 0% Temperature Cool (0) Movement Flying (29) Location -9/Materials Parts ------- > --- POWER (1) -------- Light Ion Engine > --- PROPULSION (4) --- VTOL Module VTOL Module VTOL Module > --- UTILITY (2) ------ Improved Terrain Scanner Seismic Detector > --- WEAPON (2) ------- Light Assault Rifle Mining Laser > --- INVENTORY (5) ---- Light Ion Engine Light Treads Light Treads Peak State ------------ > --- POWER ------------ Light Ion Engine > --- PROPULSION ------- VTOL Module VTOL Module VTOL Module VTOL Module > --- UTILITY ---------- Improved Terrain Scanner Seismic Detector > --- WEAPON ----------- Light Assault Rifle Mining Laser > --- INVENTORY -------- Light Ion Engine Light Treads Light Treads [Rating: 15] Favorites ----------- Power Light Ion Engine Engine Light Ion Engine Propulsion VTOL Module Treads Light Treads Flight Unit VTOL Module Utility Improved Terrain Scanner Device Improved Terrain Scanner Storage Small Storage Unit Weapon Light Assault Rifle Ballistic Gun Light Assault Rifle Special Weapon Mining Laser Build | -11 -10 -10 -9 ------- Run | Yrd Mat Min Mat Slots Evolved 2 | . . . 2 Power . | . . . . Propulsion 2 | . . . 2 Utility . | . . . . Weapon . | . . . . Parts Attached 18 | 11 4 . 3 Power 3 | 3 . . . Engine 3 | 3 . . . Core . | . . . . Reactor . | . . . . Propulsion 6 | 2 2 . 2 Treads 2 | 2 . . . Leg . | . . . . Wheel . | . . . . Hover . | . . . . Flight 4 | . 2 . 2 Utility 5 | 4 1 . . Device 3 | 2 1 . . Storage 2 | 2 . . . Processor . | . . . . Hackware . | . . . . Protection . | . . . . Artifact . | . . . . Weapon 4 | 2 1 . 1 Energy Gun . | . . . . Energy Cannon . | . . . . Ballistic Gun 2 | 2 . . . Ballistic Cannon . | . . . . Launcher . | . . . . Special Weapon 2 | . 1 . 1 Impact Weapon . | . . . . Slashing Weapon . | . . . . Piercing Weapon . | . . . . Special Melee Weapon . | . . . . Unidentified Prototypes . | . . . . Parts Lost 1 | . . . 1 Power . | . . . . Propulsion 1 | . . . 1 Utility . | . . . . Weapon . | . . . . Highest Loss Streak 1 | . . . 1 To Critical Strikes . | . . . . Average Slot Usage (%) 97 | . 100 100 91 Engine 13 | . 14 14 11 Treads 3 | . 8 . . Flight 29 | . 19 28 44 Device 24 | . 23 28 22 Storage 1 | . 4 . . Ballistic Gun 15 | . 21 14 11 Special Weapon 8 | . 7 14 3 Naked Turns . | . . . . Heaviest Build 12 | 12 12 7 7 Greatest Support 40 | 40 40 8 16 Greatest Overweight (x) . | . . . . Average Overweight (x) . | . . . . Largest Inventory Capacity 8 | 8 8 5 5 Average Capacity 6 | 7 6 5 5 Most Carried 5 | 2 5 5 4 Average Carried 2 | . 4 5 3 Final Capacity 8 | 8 5 5 5 Final Carried 5 | 2 5 5 3 Class Distribution -------------------- 55% | Mutant 44% | Sprinter Dominant Class ---------------- Sprinter | -10/Materials Sprinter | -10/Mines Sprinter | -9/Materials Resources | -11 -10 -10 -9 ----------- Run | Yrd Mat Min Mat Matter Collected 300 | 281 . 19 . Remotely . | . . . . Salvage Created 85 | 85 . . . Parts 13 | 13 . . . Haulers Intercepted . | . . . . Recyclers Shooed . | . . . . Parts Field Recycled . | . . . . Retrieved Matter . | . . . . Parts Self-Destructed . | . . . . Prevented . | . . . . Kills | -11 -10 -10 -9 ------- Run | Yrd Mat Min Mat Combat Hostiles Destroyed . | . . . . Classes Destroyed 1 | 1 . . . Tunneler 5 | 5 . . . Best Kill Streak 2 | 2 . . . Combat Bots Only . | . . . . Max Kills in Single Turn 1 | 1 . . . Gunslinging . | . . . . Exploded . | . . . . Melee . | . . . . Uniques/NPCs Destroyed . | . . . . Combat | -11 -10 -10 -9 -------- Run | Yrd Mat Min Mat Hostile Shots Fired 28 | . 1 . 27 Missed 12 | . 1 . 11 Damage Taken 139 | . . . 139 Core 18 | . . . 18 Absorbed by Shields . | . . . . Core Remaining (%) 100 | 100 . 100 . Volleys Fired 23 | 14 3 . 6 Largest 2 | 2 1 . 2 Hottest 120 | 40 100 . 120 Shots Fired 39 | 28 3 . 8 Gun 34 | 28 . . 6 Cannon . | . . . . Launcher . | . . . . Special 5 | . 3 . 2 Kinetic 34 | 28 . . 6 Thermal 5 | . 3 . 2 Explosive . | . . . . Electromagnetic . | . . . . Robot Hit Streak 3 | 3 . . 3 Robot Miss Streak 5 | 4 . . 5 Penetration Max . | . . . . Secondary Targets . | . . . . Shots Hit Robots 17 | 14 . . 3 Core Hits 9 | 8 . . 1 Critical Kills . | . . . . Critical Parts Destroyed . | . . . . Critical Strikes . | . . . . Melee Attacks . | . . . . Impact . | . . . . Slashing . | . . . . Piercing . | . . . . Sneak Attacks . | . . . . Combat Hostiles . | . . . . Follow-up Attacks . | . . . . Damage Inflicted 176 | 147 . . 29 Guns 176 | 147 . . 29 Cannons . | . . . . Explosions . | . . . . Melee . | . . . . Ramming . | . . . . Kinetic 176 | 147 . . 29 Thermal . | . . . . Explosive . | . . . . Electromagnetic . | . . . . Impact . | . . . . Slashing . | . . . . Piercing . | . . . . Highest Corruption . | . . . . Average Corruption . | . . . . Corruption Purged . | . . . . Corruption Blocked . | . . . . Overload Shots . | . . . . Overflow Damage . | . . . . Projectiles . | . . . . Explosions . | . . . . Melee . | . . . . Knockbacks . | . . . . Impact . | . . . . Kinetic . | . . . . Secondary . | . . . . Self-Inflicted Damage . | . . . . Shots . | . . . . Rammed . | . . . . Targets Rammed . | . . . . Kicked . | . . . . Crushed . | . . . . Highest Temperature 52 | . 52 . 46 Average Temperature 24 | . 25 . 22 Received Heat Transfer . | . . . . Siege Activations . | . . . . Robots Corrupted . | . . . . Combat Hostiles . | . . . . Parts Fried . | . . . . Impact Corruptions . | . . . . Robots Melted . | . . . . Combat Hostiles . | . . . . Parts Melted . | . . . . Heat Transferred . | . . . . Parts Sabotaged . | . . . . Parts Stolen . | . . . . Parts Stripped . | . . . . Power Chain Reactions . | . . . . Alert | -11 -10 -10 -9 ------- Run | Yrd Mat Min Mat Peak Influence 102 | 25 27 10 102 Initial 16 | . 16 10 3 Average 17 | 11 19 10 43 Maximum Alert Level . | . . . . Low Security (%) 100 | 100 100 100 100 Level 1 . | . . . . Level 2 . | . . . . Level 3 . | . . . . Level 4 . | . . . . Level 5 . | . . . . High Security . | . . . . Max Security . | . . . . Squads Dispatched . | . . . . Investigation . | . . . . Extermination . | . . . . Reinforcement . | . . . . Assault . | . . . . Garrison . | . . . . Intercept . | . . . . Searches Triggered . | . . . . Construction Impeded . | . . . . Haulers Reinforced . | . . . . Active Scanning Responses . | . . . . Cargo Convoy Interrupts . | . . . . Stealth | -11 -10 -10 -9 --------- Run | Yrd Mat Min Mat Distress Signals 1 | . . . 1 Communications Jammed . | . . . . Distress Signals . | . . . . Times Spotted 10 | . 2 . 8 Peak Tracking Total 8 | . 2 . 8 Tactical Retreats 1 | . . . 1 Traps | -11 -10 -10 -9 ------- Run | Yrd Mat Min Mat Traps Triggered . | . . . . Indirectly . | . . . . Trap Hack Attempts . | . . . . Triggered . | . . . . Disarmed . | . . . . Reprogrammed . | . . . . Reused . | . . . . Traps Extracted . | . . . . Installed . | . . . . Triggered . | . . . . Machines | -11 -10 -10 -9 ---------- Run | Yrd Mat Min Mat Machines Disabled . | . . . . Max in Single Turn . | . . . . Machines Repaired . | . . . . Machines Dismantled . | . . . . Machines Sabotaged . | . . . . Overloaded Fab Kills . | . . . . Hacking | -11 -10 -10 -9 --------- Run | Yrd Mat Min Mat Machines Accessed 3 | . 2 . 1 Terminals 3 | . 2 . 1 Fabricators . | . . . . Repair Stations . | . . . . Recycling Units . | . . . . Scanalyzers . | . . . . Garrison Access . | . . . . Total Hacks 7 | . 5 . 2 Successful 2 | . 1 . 1 Failed 5 | . 4 . 1 Catastrophic 2 | . 2 . . Database Lockouts . | . . . . Manual 7 | . 5 . 2 Terminals 7 | . 5 . 2 Fabricators . | . . . . Repair Stations . | . . . . Recycling Units . | . . . . Scanalyzers . | . . . . Garrison Access . | . . . . Terminal Hacks 2 | . 1 . 1 Branch Access Points 2 | . 1 . 1 Fabricator Hacks . | . . . . Repair Station Hacks . | . . . . Recycling Unit Hacks . | . . . . Scanalyzer . | . . . . Garrison Access Hacks . | . . . . Unauthorized Hacks . | . . . . Terminals . | . . . . Fabricators . | . . . . Repair Stations . | . . . . Recycling Units . | . . . . Scanalyzers . | . . . . Garrison Access . | . . . . Data Cores Recovered . | . . . . Used . | . . . . Hacking Detections 3 | . 2 . 1 Full Trace Events . | . . . . Feedback Events . | . . . . Feedback Blocked . | . . . . Robot Schematics Acquired . | . . . . Robots Built . | . . . . Authchips . | . . . . Time . | . . . . Total Robot Build Rating . | . . . . Part Schematics Acquired . | . . . . Parts Built . | . . . . Authchips . | . . . . Time . | . . . . Total Part Build Rating . | . . . . Parts Repaired . | . . . . Time . | . . . . Parts Recycled . | . . . . Recycled Matter . | . . . . Retrieved Matter . | . . . . Retrieved Components . | . . . . Parts Scanalyzed . | . . . . Part Schematics Acquired . | . . . . Parts Damaged . | . . . . Bothacking | -11 -10 -10 -9 ------------ Run | Yrd Mat Min Mat Used RIF Installer . | . . . . Robots Hacked . | . . . . Non-combat . | . . . . Combat . | . . . . Robot Hacks Applied . | . . . . Relay Couplers Released . | . . . . Fabnet Peak Effective % . | . . . . Robots Rewired . | . . . . Allies Hacked . | . . . . Hacks Repelled . | . . . . Allies | -11 -10 -10 -9 -------- Run | Yrd Mat Min Mat Total Allies . | . . . . Largest Group . | . . . . Highest-Rated Group . | . . . . Highest-Rated Ally . | . . . . Total Orders . | . . . . Ally Attacks . | . . . . Total Damage . | . . . . Kills . | . . . . Allies Corrupted . | . . . . Allies Melted . | . . . . Intel | -11 -10 -10 -9 ------- Run | Yrd Mat Min Mat Robot Analysis Total . | . . . . Derelict Logs Recovered . | . . . . Drone Launches . | . . . . Drone Recoveries . | . . . . Exploration | -11 -10 -10 -9 ------------- Run | Yrd Mat Min Mat Turns Passed 525 | 252 101 100 72 Spaces Moved 558 | 125 168 127 138 Core 5 | 5 . . . Treads 139 | 120 19 . . Legs . | . . . . Wheels . | . . . . Hover . | . . . . Flight 414 | . 149 127 138 Fastest Speed 26 | 50 32 32 26 Average Speed 62 | 155 46 32 26 Slowest Speed 160 | 160 160 32 29 Overloaded Moves . | . . . . Propulsion Burnouts . | . . . . Robots Hopped 1 | . . 1 . Cave-ins Triggered . | . . . . Exploration Rate (%) 15 | 6 25 15 15 Regions Visited 3 Branch Regions 1 Pre-discovered Areas . | . . . . Known Exits Taken 1 | . 1 . . Unknown Exits Taken 2 | 1 . 1 . Scrap Searched 1 | . . 1 . Spaces Dug 3 | . 3 . . Terrain Destroyed 4 | . 3 . 1 Melee . | . . . . Projectile 4 | . 3 . 1 AOE . | . . . . Terrain Rammed . | . . . . Walls Destroyed . | . . . . Machines Disabled . | . . . . Actions | -11 -10 -10 -9 --------- Run | Yrd Mat Min Mat Total 680 | 153 180 184 163 Wait 74 | . . 59 15 Move 553 | 124 167 124 138 Hop 1 | . . 1 . Pick Up 6 | 2 4 . . Fast Attach 9 | 8 1 . . Attach 4 | . 1 . 3 Detach 2 | 1 . . 1 Swap 5 | 3 2 . . Drop 3 | 1 2 . . Fire 23 | 14 3 . 6 Melee . | . . . . Ram . | . . . . Kick . | . . . . Crush . | . . . . Escape Stasis . | . . . . Rewire . | . . . . Trap . | . . . . Miscellaneous . | . . . . Route ------- -11/Scrapyard -10/Materials -10/Mines -9/Materials (discovered 1 exit: Min) History --------- Turn | Location | Event 21 | -11/Scrapyard | Discovered new exit (range 15) 253 | -11/Scrapyard | Entered Materials 327 | -10/Materials | Identified exit to Mines 354 | -10/Materials | Entered Mines 372 | -10/Mines | Met a Derelict bent on vengeance 418 | -10/Mines | Discovered new exit (range 6) 454 | -10/Mines | Entered Materials 454 | -9/Materials | Evolved 2 slots: Propulsion x2 463 | -9/Materials | Identified exit to Mines 526 | -9/Materials | Self-destructed Last Messages --------------- 00424_ RR-OD5(g) slips back into the shadows. 00438_ Searching scrap... 00438_ Found Med. Matter Pod. 00438_ Found 19 Matter. 00439_ Acquired 19 matter. PARAMETERS=PROPULSION+2 LOCATION=UNKNOWN GOAL=ESCAPE 00463_ Connecting with Terminal... 00463_ Current location identified: Materials >>Access(Branch) Found 1 branch access point: (83,10) Mines Map updated. 00467_ Connecting with Repair Station... 00472_ K-01 Serf collects debris. 00495_ W-16 Scout sends out distress signal. 00498_ K-01 Serf collects debris. 00516_ U-05 Engineer builds a Wall. 00524_ VTOL Module destroyed. Map ----- +----------------------------------------------------+ | ????????????????????# ## """"" #? ??"????????? | | ????????????????????# ## """"" #?????????????? | | ????????????????????# ## """"" #?????????????? | | ????????????????????# ## """ #?????????????? | | ????????????????????# ## #?????????????? | | ?????????????? """??# # #?????????????? | | ???????????# """ # #####+####?????????????? | | ???????????# + ################## | | ???????????# """ # + # | | ???????????# """ # ###""" # | | ?????????????? """ ?# """ #?#"R # | | ?????????????? ??# """ #?#""" + #??? | | ??????????????###???# """ ### # #??? | | ????????????#???????# #?# # #??? | | ???????????## ####### #?######## ##?? | | ???????????? ^ ##?#????# ### | | ???????????? ##?##### # | | ??????????? " #??[ # T | | ??????????# T """ """ #? "" # | | ??????????# " """ """ #? ""S # ### | | ???????????? """ """ # "" ######### | | ????????????? u # #?????# | | ?????????#??? + """ ##????# " | | ????????????? # """ #?????# " | | ?????????????? ######s##### # """ ??#???# " | | ????????????????# s @ # #? ??????# | | ????????????????# # #?#######??????# | | ????????????????#! """ s #??????????????### | | ????????????????# """"" ####????????????????? | | ?????????? ?????#= """"" #???????????????????? | | ????????????????# """"" #???????????????????? | | ????????????????# """ #???????????????????? | | ????????????????# #???????????????????? | | ????????????????###########?????#?????????????? | | ????????????????#????????#????????????????????? | | ??????????????????????????????????????????????? | | ?????????????#????????????????????????????????? | | | | | | | | | | | | | | | | | | | | | | | | | | | +----------------------------------------------------+ Best States ------------- Heat Dissipation 28 Energy Generation 10 Energy Capacity 125 Matter Stores 248 Matter Capacity 300 Sight Range 16 Terrain Scan Range 16 Terrain Scan Density 10 Evasion (%) 64 Recoil Reduction 2 Item Schematics ----------------- None Robot Schematics ------------------ None Fabricated ------------ Nothing Alien Tech Used ----------------- None Achievements -------------- None Challenges ------------ None Game ------ Seed Shatter Manual? 1 Play Time 00:08:13 Cumulative 18.1 hours Start 2024.06.10 @ 21:15:38 End 2024.06.10 @ 21:22:21 Sessions 1 Manual Loads 0 Difficulty Rogue Special Mode None Game No. 30 Rogue 18 Adventurer 12 Explorer 0 Win Type - Total 0 Types 0/0/0/0/0/0/0/0/0 Lore% 23 Gallery% 26 Achievement% 20 Wizard Run 0 Options --------- Layout 1 ASCII 0 Keyboard 0 Movement Arrows Keybinds 0 Fullscreen 2 Font 24/Smallcaps Map View 50x35 Zoom Use 0% Tactical HUD 1 Map Filters NONE Filters NONE Steam 1 RUN: f904e649-4215-4e73-9ea2-8e4558408f04